[Event "*** Titled Tuesday Blitz"]
[Site "Chess.com"]
[Date "2021.03.30"]
[Round "8"]
[White "2nd_life"]
[Black "SanchezKelvin"]
[Result "1-0"]
[WhiteElo "2418"]
[BlackElo "2594"]
[TimeControl "180+1"]
[EndTime "11:26:58 PDT"]
[Termination "2nd_life won by resignation"]

1. e4 {[%clk 0:03:00.9]} 1... c5 {[%clk 0:02:59.4]} 2. Nf3 {[%clk 0:03:00.8]}
2... d6 {[%clk 0:02:57.1]} 3. d4 {[%clk 0:03:00.3]} 3... cxd4 {[%clk 0:02:58]}
4. Nxd4 {[%clk 0:03:00.7]} 4... Nf6 {[%clk 0:02:58.4]} 5. Nc3 {[%clk 0:03:01.2]}
5... g6 {[%clk 0:02:58.8]} 6. Be3 {[%clk 0:03:01.4]} 6... Bg7 {[%clk 0:02:59.7]}
7. f3 {[%clk 0:03:01.9]} 7... O-O {[%clk 0:03:00.4]} 8. Qd2 {[%clk 0:03:02.4]}
8... Nc6 {[%clk 0:03:01]} 9. O-O-O {[%clk 0:03:02.8]} 9... Nxd4 {[%clk
0:03:01.2]} 10. Bxd4 {[%clk 0:03:02.3]} 10... Be6 {[%clk 0:03:02.1]} 11. Kb1
{[%clk 0:03:02.4]} 11... Qc7 {[%clk 0:03:01.8]} 12. h4 {[%clk 0:03:02.1]} 12...
Rfc8 {[%clk 0:03:01.2]} 13. h5 {[%clk 0:03:01.7]} 13... Qa5 {[%clk 0:03:01]} 14.
h6 {[%clk 0:03:00.8]} 14... Bh8 {[%clk 0:02:57.7]} 15. a3 {[%clk 0:03:00.3]}
15... Rab8 {[%clk 0:02:50.6]} 16. Bxf6 {[%clk 0:02:51.7]} 16... Bxf6 {[%clk
0:02:49.6]} 17. Nd5 {[%clk 0:02:51.3]} 17... Qxd2 {[%clk 0:02:49.8]} 18. Nxf6+
{[%clk 0:02:51.1]} 18... exf6 {[%clk 0:02:50.7]} 19. Rxd2 {[%clk 0:02:51.2]}
19... Rd8 {[%clk 0:02:49.9]} 20. Be2 {[%clk 0:02:32.9]} 20... Kf8 {[%clk
0:02:46.8]} 21. g4 {[%clk 0:02:27.5]} 21... Ke7 {[%clk 0:02:45.4]} 22. f4 {[%clk
0:02:26.6]} 22... Rbc8 {[%clk 0:02:36.2]} 23. Rd4 {[%clk 0:02:13.7]} 23... Bd7
{[%clk 0:02:31.4]} 24. Rhd1 {[%clk 0:01:59.5]} 24... Bc6 {[%clk 0:02:31.1]} 25.
c4 {[%clk 0:01:58.3]} 25... b6 {[%clk 0:02:29.9]} 26. b4 {[%clk 0:01:56.4]}
26... Ke6 {[%clk 0:02:25.5]} 27. Kb2 {[%clk 0:01:45.2]} 27... Rd7 {[%clk
0:02:10.3]} 28. Kb3 {[%clk 0:01:43.2]} 28... Rcd8 {[%clk 0:02:09.9]} 29. Bf3
{[%clk 0:01:42.2]} 29... g5 {[%clk 0:02:01.5]} 30. f5+ {[%clk 0:01:28.4]} 30...
Ke5 {[%clk 0:02:01.3]} 31. Kc3 {[%clk 0:01:26.8]} 31... a5 {[%clk 0:01:57.9]}
32. b5 {[%clk 0:01:22.9]} 32... Bb7 {[%clk 0:01:56.5]} 33. Kd3 {[%clk
0:01:22.7]} 33... Rc7 {[%clk 0:01:34.9]} 34. Ke3 {[%clk 0:01:18.5]} 34... Rc5
{[%clk 0:01:33]} 35. Be2 {[%clk 0:01:18.1]} 35... Rd7 {[%clk 0:01:30.1]} 36.
Rd5+ {[%clk 0:01:13.3]} 36... Bxd5 {[%clk 0:01:23.4]} 37. exd5 {[%clk
0:01:14.2]} 37... Rdc7 {[%clk 0:01:08.4]} 38. Rd4 {[%clk 0:01:12.5]} 1-0

[Event "*** Titled Tuesday Blitz"]
[Site "Chess.com"]
[Date "2021.03.30"]
[Round "8"]
[White "zmeeed67"]
[Black "lacafi"]
[Result "0-1"]
[WhiteElo "2402"]
[BlackElo "2239"]
[TimeControl "180+1"]
[EndTime "11:26:58 PDT"]
[Termination "lacafi won by resignation"]

1. d4 {[%clk 0:03:00.9]} 1... f5 {[%clk 0:02:59.9]} 2. Nc3 {[%clk 0:03:00]} 2...
Nf6 {[%clk 0:03:00.4]} 3. Bg5 {[%clk 0:02:59.7]} 3... g6 {[%clk 0:03:00]} 4.
Bxf6 {[%clk 0:02:55]} 4... exf6 {[%clk 0:03:00.9]} 5. e3 {[%clk 0:02:53.4]} 5...
d5 {[%clk 0:03:00.5]} 6. Bd3 {[%clk 0:02:42.1]} 6... c6 {[%clk 0:02:57.3]} 7. h3
{[%clk 0:02:39.8]} 7... Qb6 {[%clk 0:02:51.4]} 8. Qf3 {[%clk 0:02:34]} 8... Qxb2
{[%clk 0:02:42.8]} 9. Kd2 {[%clk 0:02:23.3]} 9... Qxa1 {[%clk 0:02:37.2]} 10. g4
{[%clk 0:02:24.2]} 10... Bb4 {[%clk 0:01:32.6]} 11. Ne2 {[%clk 0:02:23.4]} 11...
Qxa2 {[%clk 0:01:31.1]} 12. gxf5 {[%clk 0:02:18.8]} 12... Bxf5 {[%clk
0:01:25.6]} 13. Bxf5 {[%clk 0:02:18.2]} 13... gxf5 {[%clk 0:01:25]} 14. Qh5+
{[%clk 0:02:18.7]} 14... Kd8 {[%clk 0:01:14.2]} 15. Rg1 {[%clk 0:02:12]} 15...
Nd7 {[%clk 0:01:10.7]} 16. Rg7 {[%clk 0:02:12.1]} 16... Kc7 {[%clk 0:01:01.2]}
17. Qxf5 {[%clk 0:02:02.6]} 17... Rad8 {[%clk 0:00:57.7]} 18. Qf4+ {[%clk
0:02:02.9]} 18... Kc8 {[%clk 0:00:52.5]} 19. e4 {[%clk 0:01:30.7]} 19... dxe4
{[%clk 0:00:38.4]} 20. Ke3 {[%clk 0:01:24.3]} 20... Qxc2 {[%clk 0:00:31.7]} 21.
Nxe4 {[%clk 0:01:24.1]} 21... Rhe8 {[%clk 0:00:24.2]} 22. f3 {[%clk 0:01:18.2]}
22... Bd2+ {[%clk 0:00:21]} 23. Kf2 {[%clk 0:01:16.9]} 23... Bxf4 {[%clk
0:00:20.6]} 0-1

[Event "*** Titled Tuesday Blitz"]
[Site "Chess.com"]
[Date "2021.03.30"]
[Round "8"]
[White "MYMChessAcademy"]
[Black "Khnykin_Nikolay"]
[Result "1-0"]
[WhiteElo "2176"]
[BlackElo "2015"]
[TimeControl "180+1"]
[EndTime "11:27:11 PDT"]
[Termination "MYMChessAcademy won by checkmate"]

1. e4 {[%clk 0:03:00.9]} 1... e6 {[%clk 0:02:55]} 2. d4 {[%clk 0:02:59.2]} 2...
d5 {[%clk 0:02:55.1]} 3. Nc3 {[%clk 0:02:58.4]} 3... Bb4 {[%clk 0:02:54.3]} 4.
e5 {[%clk 0:02:56.4]} 4... c5 {[%clk 0:02:53]} 5. a3 {[%clk 0:02:54.1]} 5...
Bxc3+ {[%clk 0:02:51.5]} 6. bxc3 {[%clk 0:02:52.8]} 6... Nc6 {[%clk 0:02:52]} 7.
f4 {[%clk 0:02:43.8]} 7... cxd4 {[%clk 0:02:49.4]} 8. cxd4 {[%clk 0:02:42.3]}
8... Nge7 {[%clk 0:02:48.2]} 9. Nf3 {[%clk 0:02:39.5]} 9... Nf5 {[%clk
0:02:47.7]} 10. c3 {[%clk 0:02:32.9]} 10... O-O {[%clk 0:02:44.4]} 11. Bd3
{[%clk 0:02:30.2]} 11... Nh4 {[%clk 0:02:33.9]} 12. Nxh4 {[%clk 0:02:23.2]}
12... Qxh4+ {[%clk 0:02:32.9]} 13. g3 {[%clk 0:02:22.9]} 13... Qh3 {[%clk
0:02:31.1]} 14. Bf1 {[%clk 0:02:05.5]} 14... Qh6 {[%clk 0:02:28]} 15. f5 {[%clk
0:01:59.4]} 15... g5 {[%clk 0:02:23.6]} 16. f6 {[%clk 0:01:31.4]} 16... Kh8
{[%clk 0:01:57.5]} 17. h4 {[%clk 0:01:20]} 17... Rg8 {[%clk 0:01:57]} 18. Qg4
{[%clk 0:01:12.2]} 18... Na5 {[%clk 0:01:27.2]} 19. Rh3 {[%clk 0:00:52.6]} 19...
Nb3 {[%clk 0:01:13.1]} 20. hxg5 {[%clk 0:00:46.6]} 20... Qf8 {[%clk 0:00:44.9]}
21. Rxh7+ {[%clk 0:00:42.3]} 21... Kxh7 {[%clk 0:00:43.6]} 22. Qh5+ {[%clk
0:00:41.6]} 22... Qh6 {[%clk 0:00:42]} 23. Qxh6# {[%clk 0:00:41.9]} 1-0

[Event "*** Titled Tuesday Blitz"]
[Site "Chess.com"]
[Date "2021.03.30"]
[Round "8"]
[White "mac0504"]
[Black "Jungle_Jaguar"]
[Result "0-1"]
[WhiteElo "2468"]
[BlackElo "2620"]
[TimeControl "180+1"]
[EndTime "11:27:12 PDT"]
[Termination "Jungle_Jaguar won on time"]

1. e4 {[%clk 0:03:00.9]} 1... e5 {[%clk 0:02:59.5]} 2. Nf3 {[%clk 0:03:00.4]}
2... Nc6 {[%clk 0:02:59.8]} 3. Bb5 {[%clk 0:03:00.9]} 3... a6 {[%clk 0:02:59.6]}
4. Ba4 {[%clk 0:03:01]} 4... Nf6 {[%clk 0:03:00]} 5. O-O {[%clk 0:02:55.1]} 5...
Be7 {[%clk 0:03:00.2]} 6. c3 {[%clk 0:02:39.8]} 6... O-O {[%clk 0:02:50.7]} 7.
Bc2 {[%clk 0:02:32.5]} 7... d5 {[%clk 0:02:46.5]} 8. d4 {[%clk 0:02:28.4]} 8...
exd4 {[%clk 0:02:41.8]} 9. e5 {[%clk 0:02:21.9]} 9... Ne4 {[%clk 0:02:40.2]} 10.
cxd4 {[%clk 0:02:21.5]} 10... Bg4 {[%clk 0:02:38.1]} 11. Be3 {[%clk 0:01:56.5]}
11... f6 {[%clk 0:02:29]} 12. Bxe4 {[%clk 0:01:28.9]} 12... dxe4 {[%clk
0:02:25.7]} 13. Qb3+ {[%clk 0:01:29.4]} 13... Kh8 {[%clk 0:02:25.6]} 14. Nfd2
{[%clk 0:01:25.1]} 14... Nxd4 {[%clk 0:02:23.1]} 15. Qc4 {[%clk 0:01:05.3]}
15... fxe5 {[%clk 0:02:16.8]} 16. Nc3 {[%clk 0:01:04.9]} 16... b5 {[%clk
0:02:12.8]} 17. Qd5 {[%clk 0:01:03.7]} 17... Ne2+ {[%clk 0:01:56.7]} 18. Kh1
{[%clk 0:01:00.9]} 18... Nxc3 {[%clk 0:01:56]} 19. Qxd8 {[%clk 0:00:52.1]} 19...
Raxd8 {[%clk 0:01:56.9]} 20. bxc3 {[%clk 0:00:52.5]} 20... Be2 {[%clk
0:01:57.5]} 21. Rfe1 {[%clk 0:00:37.1]} 21... Bd3 {[%clk 0:01:57.9]} 22. a4
{[%clk 0:00:21.6]} 22... b4 {[%clk 0:01:55.3]} 23. cxb4 {[%clk 0:00:11.7]} 23...
Bxb4 {[%clk 0:01:56.2]} 24. Rec1 {[%clk 0:00:11.9]} 24... Bxd2 {[%clk
0:01:53.2]} 25. Bxd2 {[%clk 0:00:11.9]} 25... Rxf2 {[%clk 0:01:53.9]} 26. Ba5
{[%clk 0:00:05]} 26... Rc2 {[%clk 0:01:46]} 27. Rxc2 {[%clk 0:00:03.9]} 27...
Bxc2 {[%clk 0:01:46.9]} 28. Bxc7 {[%clk 0:00:02.6]} 28... Rd7 {[%clk 0:01:43.1]}
29. Bxe5 {[%clk 0:00:01.6]} 29... Bxa4 {[%clk 0:01:43.8]} 0-1

[Event "*** Titled Tuesday Blitz"]
[Site "Chess.com"]
[Date "2021.03.30"]
[Round "8"]
[White "GelmanAlexander"]
[Black "OK97"]
[Result "1-0"]
[WhiteElo "2658"]
[BlackElo "2786"]
[TimeControl "180+1"]
[EndTime "11:27:17 PDT"]
[Termination "GelmanAlexander won by resignation"]

1. d4 {[%clk 0:03:00.9]} 1... Nf6 {[%clk 0:03:00.3]} 2. Nc3 {[%clk 0:03:00.7]}
2... d5 {[%clk 0:03:00.2]} 3. Bf4 {[%clk 0:03:00.9]} 3... e6 {[%clk 0:03:00.4]}
4. Nb5 {[%clk 0:03:00.8]} 4... Na6 {[%clk 0:03:00.6]} 5. e3 {[%clk 0:03:00.9]}
5... Be7 {[%clk 0:02:59]} 6. g4 {[%clk 0:03:00.9]} 6... Ne4 {[%clk 0:02:52.1]}
7. Bg2 {[%clk 0:02:46.6]} 7... Nd6 {[%clk 0:02:31.5]} 8. Nc3 {[%clk 0:02:37.6]}
8... c5 {[%clk 0:02:14.6]} 9. Nf3 {[%clk 0:02:30.2]} 9... Nc4 {[%clk 0:02:09]}
10. Rb1 {[%clk 0:02:20.2]} 10... Qa5 {[%clk 0:01:59.2]} 11. O-O {[%clk
0:02:16.3]} 11... O-O {[%clk 0:01:56.8]} 12. Ne2 {[%clk 0:01:59.3]} 12... Bd7
{[%clk 0:01:40.7]} 13. b3 {[%clk 0:01:49]} 13... Na3 {[%clk 0:01:39.6]} 14. Rc1
{[%clk 0:01:48]} 14... Rac8 {[%clk 0:01:31.2]} 15. Ne5 {[%clk 0:01:44.7]} 15...
Bb5 {[%clk 0:01:24.1]} 16. c4 {[%clk 0:01:44.1]} 16... dxc4 {[%clk 0:01:24.2]}
17. bxc4 {[%clk 0:01:45]} 17... Ba4 {[%clk 0:01:18.1]} 18. Qd3 {[%clk
0:01:44.4]} 18... cxd4 {[%clk 0:01:18.3]} 19. exd4 {[%clk 0:01:40.7]} 19... Nc2
{[%clk 0:00:49.1]} 20. Be4 {[%clk 0:01:07.1]} 20... Ncb4 {[%clk 0:00:36.6]} 21.
Bxh7+ {[%clk 0:01:03.1]} 21... Kh8 {[%clk 0:00:36.5]} 22. Qh3 {[%clk 0:01:03.8]}
22... Bd1 {[%clk 0:00:14.7]} 1-0

[Event "*** Titled Tuesday Blitz"]
[Site "Chess.com"]
[Date "2021.03.30"]
[Round "8"]
[White "Zmeeed63"]
[Black "ehrenfeld"]
[Result "0-1"]
[WhiteElo "2335"]
[BlackElo "2505"]
[TimeControl "180+1"]
[EndTime "11:27:20 PDT"]
[Termination "ehrenfeld won on time"]

1. d4 {[%clk 0:02:50.5]} 1... Nf6 {[%clk 0:02:39.3]} 2. c4 {[%clk 0:02:45.5]}
2... e6 {[%clk 0:02:35]} 3. Nc3 {[%clk 0:02:45.5]} 3... Bb4 {[%clk 0:02:33.6]}
4. f3 {[%clk 0:02:46]} 4... O-O {[%clk 0:02:32.4]} 5. e4 {[%clk 0:02:44.9]} 5...
d5 {[%clk 0:02:30.7]} 6. e5 {[%clk 0:02:44.9]} 6... Nfd7 {[%clk 0:02:29.5]} 7.
f4 {[%clk 0:02:41.1]} 7... c5 {[%clk 0:02:28.4]} 8. a3 {[%clk 0:02:39.6]} 8...
Ba5 {[%clk 0:02:22.5]} 9. dxc5 {[%clk 0:02:19.2]} 9... Bxc3+ {[%clk 0:02:20.6]}
10. bxc3 {[%clk 0:02:20.1]} 10... Nxc5 {[%clk 0:02:20.7]} 11. cxd5 {[%clk
0:02:19.4]} 11... exd5 {[%clk 0:02:20.4]} 12. Nf3 {[%clk 0:02:19.1]} 12... Nc6
{[%clk 0:02:20.3]} 13. Be2 {[%clk 0:02:15.7]} 13... Bf5 {[%clk 0:02:19.7]} 14.
Be3 {[%clk 0:01:58.6]} 14... Ne4 {[%clk 0:02:17.1]} 15. Rc1 {[%clk 0:01:53.1]}
15... Qa5 {[%clk 0:02:06.3]} 16. Nd4 {[%clk 0:01:14.7]} 16... Nxd4 {[%clk
0:02:00.7]} 17. Bxd4 {[%clk 0:01:15.2]} 17... Rac8 {[%clk 0:01:46]} 18. g4
{[%clk 0:00:55.6]} 18... Bd7 {[%clk 0:01:34.1]} 19. Qd3 {[%clk 0:00:51.8]} 19...
a6 {[%clk 0:01:30.1]} 20. Qf3 {[%clk 0:00:29.8]} 20... Bb5 {[%clk 0:01:28.1]}
21. Bxb5 {[%clk 0:00:21.4]} 21... Qxb5 {[%clk 0:01:27.6]} 22. Qe2 {[%clk
0:00:18.8]} 22... Qxe2+ {[%clk 0:01:16.4]} 0-1

[Event "*** Titled Tuesday Blitz"]
[Site "Chess.com"]
[Date "2021.03.30"]
[Round "8"]
[White "szachuspl"]
[Black "dpruess"]
[Result "1-0"]
[WhiteElo "2551"]
[BlackElo "2360"]
[TimeControl "180+1"]
[EndTime "11:27:26 PDT"]
[Termination "szachuspl won by resignation"]

1. d4 {[%clk 0:03:00.9]} 1... Nf6 {[%clk 0:02:59]} 2. c4 {[%clk 0:02:59.6]} 2...
e6 {[%clk 0:02:58.3]} 3. Nf3 {[%clk 0:02:59.3]} 3... c5 {[%clk 0:02:58.1]} 4. d5
{[%clk 0:02:59.2]} 4... exd5 {[%clk 0:02:59]} 5. cxd5 {[%clk 0:02:59.8]} 5... d6
{[%clk 0:02:59.7]} 6. Nc3 {[%clk 0:03:00.3]} 6... g6 {[%clk 0:03:00.1]} 7. e4
{[%clk 0:03:00.8]} 7... Bg7 {[%clk 0:03:00.5]} 8. h3 {[%clk 0:03:01]} 8... O-O
{[%clk 0:03:00.4]} 9. Bd3 {[%clk 0:03:01.4]} 9... b5 {[%clk 0:03:00.6]} 10. Bxb5
{[%clk 0:03:01.2]} 10... Nxe4 {[%clk 0:02:57]} 11. Nxe4 {[%clk 0:02:56.7]} 11...
Qa5+ {[%clk 0:02:56.8]} 12. Nfd2 {[%clk 0:02:54.4]} 12... Qxb5 {[%clk
0:02:54.1]} 13. Nxd6 {[%clk 0:02:54.5]} 13... Qa6 {[%clk 0:02:45.6]} 14. N2c4
{[%clk 0:02:51.6]} 14... Nd7 {[%clk 0:02:45.4]} 15. O-O {[%clk 0:02:50.2]} 15...
Nb6 {[%clk 0:02:44.6]} 16. Nxc8 {[%clk 0:02:31.9]} 16... Qxc4 {[%clk 0:02:15.1]}
17. Ne7+ {[%clk 0:02:25.7]} 17... Kh8 {[%clk 0:02:13.2]} 18. Be3 {[%clk
0:02:17.8]} 18... Rfd8 {[%clk 0:01:29.6]} 19. Rc1 {[%clk 0:02:13.7]} 19... Qxa2
{[%clk 0:01:28.1]} 20. Rxc5 {[%clk 0:02:05.3]} 20... Qxb2 {[%clk 0:01:26.2]} 21.
d6 {[%clk 0:01:51]} 21... Nd7 {[%clk 0:01:14.8]} 22. Rc7 {[%clk 0:01:40.7]}
22... Ne5 {[%clk 0:01:11.6]} 23. Qd5 {[%clk 0:01:32.8]} 23... Qb4 {[%clk
0:00:51.6]} 24. Bc5 {[%clk 0:01:29]} 24... Qa5 {[%clk 0:00:42.1]} 25. f4 {[%clk
0:01:15.3]} 25... Qxc7 {[%clk 0:00:17]} 26. dxc7 {[%clk 0:01:15]} 26... Rxd5
{[%clk 0:00:17]} 27. Nxd5 {[%clk 0:01:15.7]} 27... Nd3 {[%clk 0:00:16.9]} 28.
Bd6 {[%clk 0:01:12]} 28... Bf8 {[%clk 0:00:12.2]} 29. Bxf8 {[%clk 0:01:09.4]}
29... Rxf8 {[%clk 0:00:11.6]} 30. Ne7 {[%clk 0:01:10]} 1-0

[Event "*** Titled Tuesday Blitz"]
[Site "Chess.com"]
[Date "2021.03.30"]
[Round "8"]
[White "ErikBlomqvist"]
[Black "Caterpiller35"]
[Result "1-0"]
[WhiteElo "2591"]
[BlackElo "2389"]
[TimeControl "180+1"]
[EndTime "11:27:29 PDT"]
[Termination "ErikBlomqvist won by resignation"]

1. e4 {[%clk 0:03:00.9]} 1... c5 {[%clk 0:02:59.2]} 2. Nf3 {[%clk 0:03:00.7]}
2... Nc6 {[%clk 0:02:59.5]} 3. Nc3 {[%clk 0:02:57.8]} 3... e5 {[%clk 0:02:57]}
4. Bc4 {[%clk 0:02:56.9]} 4... d6 {[%clk 0:02:56.9]} 5. d3 {[%clk 0:02:54.9]}
5... Be7 {[%clk 0:02:57]} 6. a3 {[%clk 0:02:41.3]} 6... Nf6 {[%clk 0:02:56.5]}
7. Ng5 {[%clk 0:02:41.5]} 7... O-O {[%clk 0:02:56.3]} 8. h4 {[%clk 0:02:41.8]}
8... Nd4 {[%clk 0:02:50.7]} 9. Nd5 {[%clk 0:02:35.9]} 9... Nxd5 {[%clk 0:02:16]}
10. Bxd5 {[%clk 0:02:36.8]} 10... h6 {[%clk 0:02:02.5]} 11. c3 {[%clk
0:02:26.9]} 11... Ne6 {[%clk 0:01:56.5]} 12. Nxe6 {[%clk 0:02:18.2]} 12... fxe6
{[%clk 0:01:54.1]} 13. Ba2 {[%clk 0:02:15.4]} 13... Bxh4 {[%clk 0:01:52.9]} 14.
Qg4 {[%clk 0:02:03.2]} 14... Bxf2+ {[%clk 0:01:44.8]} 15. Ke2 {[%clk 0:02:01.6]}
15... Qf6 {[%clk 0:01:13.5]} 16. Bxh6 {[%clk 0:01:41.8]} 16... Bh4 {[%clk
0:01:03.8]} 17. Be3 {[%clk 0:01:33.6]} 17... Bf2 {[%clk 0:00:23.6]} 18. Raf1
{[%clk 0:01:29.1]} 18... Bxe3 {[%clk 0:00:22.6]} 19. Rxf6 {[%clk 0:01:28.4]}
19... Rxf6 {[%clk 0:00:23.5]} 20. Kxe3 {[%clk 0:01:27.4]} 20... Bd7 {[%clk
0:00:24.4]} 21. Rh3 {[%clk 0:01:14.5]} 21... Raf8 {[%clk 0:00:19.1]} 22. Rg3
{[%clk 0:01:13.6]} 22... R8f7 {[%clk 0:00:16]} 23. Rf3 {[%clk 0:01:12.7]} 23...
Kf8 {[%clk 0:00:08.5]} 24. Rxf6 {[%clk 0:01:09.7]} 24... gxf6 {[%clk 0:00:09.4]}
25. Bxe6 {[%clk 0:01:08.8]} 1-0

[Event "*** Titled Tuesday Blitz"]
[Site "Chess.com"]
[Date "2021.03.30"]
[Round "8"]
[White "chessmadara"]
[Black "pavelalexandru07"]
[Result "0-1"]
[WhiteElo "2200"]
[BlackElo "2301"]
[TimeControl "180+1"]
[EndTime "11:27:29 PDT"]
[Termination "pavelalexandru07 won by resignation"]

1. e4 {[%clk 0:03:00.9]} 1... c5 {[%clk 0:02:59.5]} 2. Nf3 {[%clk 0:03:00.8]}
2... d6 {[%clk 0:02:53.7]} 3. d4 {[%clk 0:03:00.8]} 3... cxd4 {[%clk 0:02:54.6]}
4. Nxd4 {[%clk 0:03:01.3]} 4... Nf6 {[%clk 0:02:53.5]} 5. Nc3 {[%clk 0:03:01.4]}
5... a6 {[%clk 0:02:52.1]} 6. Be2 {[%clk 0:02:59.9]} 6... e5 {[%clk 0:02:49.2]}
7. Nb3 {[%clk 0:02:58.6]} 7... Be6 {[%clk 0:02:48.7]} 8. Bg5 {[%clk 0:02:57.6]}
8... Be7 {[%clk 0:02:47.9]} 9. Bxf6 {[%clk 0:02:56.3]} 9... Bxf6 {[%clk
0:02:47.6]} 10. Qd3 {[%clk 0:02:55.5]} 10... Be7 {[%clk 0:02:40.6]} 11. O-O-O
{[%clk 0:02:54.1]} 11... Nd7 {[%clk 0:02:32.8]} 12. Kb1 {[%clk 0:02:38.1]} 12...
Nf6 {[%clk 0:02:29.3]} 13. Nd2 {[%clk 0:02:35.4]} 13... b5 {[%clk 0:02:28.2]}
14. Nf1 {[%clk 0:02:32.2]} 14... Rc8 {[%clk 0:02:23]} 15. f3 {[%clk 0:02:26.9]}
15... Qa5 {[%clk 0:02:04.5]} 16. Ne3 {[%clk 0:02:21.8]} 16... Rxc3 {[%clk
0:00:27]} 17. Qxc3 {[%clk 0:02:21.2]} 17... Qxa2+ {[%clk 0:00:27.5]} 18. Kc1
{[%clk 0:02:21]} 18... O-O {[%clk 0:00:28.1]} 19. Nd5 {[%clk 0:02:15.6]} 19...
Nxd5 {[%clk 0:00:26.1]} 20. exd5 {[%clk 0:02:15.3]} 20... Bf5 {[%clk 0:00:25.3]}
21. Qa3 {[%clk 0:02:01.4]} 21... Bg5+ {[%clk 0:00:24.9]} 22. Rd2 {[%clk
0:01:59.9]} 22... Bxd2+ {[%clk 0:00:24.6]} 23. Kxd2 {[%clk 0:02:00.2]} 23...
Qxa3 {[%clk 0:00:24.6]} 24. bxa3 {[%clk 0:02:00.7]} 24... Rc8 {[%clk 0:00:24.5]}
25. Bd3 {[%clk 0:01:59.9]} 25... Bxd3 {[%clk 0:00:23.7]} 26. Kxd3 {[%clk
0:02:00.8]} 26... Rc5 {[%clk 0:00:23.7]} 27. a4 {[%clk 0:01:53]} 27... Rxd5+
{[%clk 0:00:22.4]} 28. Ke3 {[%clk 0:01:52.8]} 28... Rc5 {[%clk 0:00:22.5]} 29.
axb5 {[%clk 0:01:51.9]} 29... axb5 {[%clk 0:00:20.6]} 30. Kd3 {[%clk 0:01:50.8]}
30... Kf8 {[%clk 0:00:20.6]} 31. c3 {[%clk 0:01:46.2]} 31... Ke7 {[%clk
0:00:20.4]} 32. Ra1 {[%clk 0:01:45.5]} 32... Ke6 {[%clk 0:00:20.5]} 33. Ra7
{[%clk 0:01:45]} 33... g6 {[%clk 0:00:18.7]} 34. h4 {[%clk 0:01:43.8]} 34... h5
{[%clk 0:00:18.3]} 35. Rb7 {[%clk 0:01:42.3]} 35... Rc4 {[%clk 0:00:17.4]} 36.
Rxb5 {[%clk 0:01:41.6]} 36... Rxh4 {[%clk 0:00:17.4]} 37. Ke3 {[%clk 0:01:40]}
37... Rc4 {[%clk 0:00:17]} 38. Kd3 {[%clk 0:01:39.1]} 38... Ra4 {[%clk
0:00:17.2]} 39. Rb7 {[%clk 0:01:37.6]} 39... Ra2 {[%clk 0:00:16.3]} 40. g3
{[%clk 0:01:35.8]} 40... Rg2 {[%clk 0:00:16.3]} 0-1

[Event "*** Titled Tuesday Blitz"]
[Site "Chess.com"]
[Date "2021.03.30"]
[Round "8"]
[White "AthanasiusLefebvre"]
[Black "rugbyclub"]
[Result "0-1"]
[WhiteElo "2038"]
[BlackElo "2262"]
[TimeControl "180+1"]
[EndTime "11:27:30 PDT"]
[Termination "rugbyclub won by resignation"]

1. g3 {[%clk 0:02:49.2]} 1... Nf6 {[%clk 0:02:58.7]} 2. Bg2 {[%clk 0:02:49.7]}
2... g6 {[%clk 0:02:59.2]} 3. Nf3 {[%clk 0:02:50.3]} 3... Bg7 {[%clk 0:02:59.7]}
4. O-O {[%clk 0:02:50.8]} 4... O-O {[%clk 0:03:00.3]} 5. d3 {[%clk 0:02:51.3]}
5... c5 {[%clk 0:02:55.9]} 6. c4 {[%clk 0:02:52.2]} 6... Nc6 {[%clk 0:02:55.8]}
7. Nc3 {[%clk 0:02:53.1]} 7... a6 {[%clk 0:02:53.7]} 8. Rb1 {[%clk 0:02:54]}
8... Rb8 {[%clk 0:02:52.8]} 9. a3 {[%clk 0:02:54.9]} 9... b5 {[%clk 0:02:51.6]}
10. b4 {[%clk 0:02:55.8]} 10... cxb4 {[%clk 0:02:50.8]} 11. axb4 {[%clk
0:02:52.2]} 11... bxc4 {[%clk 0:02:50.4]} 12. b5 {[%clk 0:02:36.6]} 12... axb5
{[%clk 0:02:48.3]} 13. dxc4 {[%clk 0:02:35.3]} 13... bxc4 {[%clk 0:02:45.1]} 14.
Rxb8 {[%clk 0:02:33.9]} 14... Nxb8 {[%clk 0:02:44.9]} 15. Qa4 {[%clk 0:02:32.7]}
15... d5 {[%clk 0:02:41.5]} 16. Rd1 {[%clk 0:02:32.3]} 16... Bd7 {[%clk
0:02:36.4]} 17. Qa8 {[%clk 0:02:21.9]} 17... e6 {[%clk 0:02:30]} 18. Ba3 {[%clk
0:02:15.9]} 18... Re8 {[%clk 0:02:24.7]} 19. Ne5 {[%clk 0:02:15]} 19... Qc7
{[%clk 0:02:08.6]} 20. f4 {[%clk 0:01:40.8]} 20... Nc6 {[%clk 0:02:06.8]} 21.
Qa6 {[%clk 0:01:20.2]} 21... Nxe5 {[%clk 0:02:04.5]} 22. Bd6 {[%clk 0:01:16.2]}
22... Qc6 {[%clk 0:01:56.6]} 23. Qa3 {[%clk 0:01:00.8]} 23... Neg4 {[%clk
0:01:40.6]} 24. e4 {[%clk 0:00:59.2]} 24... Ne3 {[%clk 0:01:19]} 25. exd5 {[%clk
0:00:21]} 25... exd5 {[%clk 0:01:11.5]} 26. Re1 {[%clk 0:00:17]} 26... Nxg2
{[%clk 0:01:08.3]} 27. Rxe8+ {[%clk 0:00:16.5]} 27... Bxe8 {[%clk 0:01:08.3]}
28. Kxg2 {[%clk 0:00:10.5]} 28... d4+ {[%clk 0:01:08.2]} 0-1

[Event "*** Titled Tuesday Blitz"]
[Site "Chess.com"]
[Date "2021.03.30"]
[Round "8"]
[White "sau6on"]
[Black "kubal123"]
[Result "1-0"]
[WhiteElo "2366"]
[BlackElo "2232"]
[TimeControl "180+1"]
[EndTime "11:27:35 PDT"]
[Termination "sau6on won by resignation"]

1. e4 {[%clk 0:03:00]} 1... g6 {[%clk 0:03:00.9]} 2. d4 {[%clk 0:02:58]} 2... c5
{[%clk 0:02:59]} 3. Nf3 {[%clk 0:02:50.3]} 3... cxd4 {[%clk 0:02:57]} 4. Nxd4
{[%clk 0:02:50.4]} 4... Nc6 {[%clk 0:02:56.8]} 5. c4 {[%clk 0:02:49.7]} 5... Qb6
{[%clk 0:02:37]} 6. Nb5 {[%clk 0:02:41.9]} 6... a6 {[%clk 0:02:33.1]} 7. Be3
{[%clk 0:02:40.9]} 7... Qa5+ {[%clk 0:02:33.5]} 8. N5c3 {[%clk 0:02:40.9]} 8...
Bg7 {[%clk 0:02:32.6]} 9. Be2 {[%clk 0:02:38]} 9... Nf6 {[%clk 0:02:14.3]} 10.
O-O {[%clk 0:02:34.5]} 10... d6 {[%clk 0:02:13.9]} 11. Nd2 {[%clk 0:02:12.7]}
11... O-O {[%clk 0:02:12.8]} 12. a3 {[%clk 0:02:07.2]} 12... Qd8 {[%clk
0:02:07.7]} 13. Rc1 {[%clk 0:02:03.3]} 13... Be6 {[%clk 0:01:57.3]} 14. f4
{[%clk 0:01:51.7]} 14... Rc8 {[%clk 0:01:37.9]} 15. b4 {[%clk 0:01:37.9]} 15...
Bd7 {[%clk 0:01:29.8]} 16. Nb3 {[%clk 0:01:30.1]} 16... h5 {[%clk 0:01:04.5]}
17. h3 {[%clk 0:01:27.9]} 17... Kh7 {[%clk 0:01:02.9]} 18. g4 {[%clk 0:01:02.7]}
18... hxg4 {[%clk 0:01:02.1]} 19. hxg4 {[%clk 0:01:03.6]} 19... Kg8 {[%clk
0:00:55.9]} 20. g5 {[%clk 0:01:02.6]} 20... Ne8 {[%clk 0:00:54.7]} 21. Rf2
{[%clk 0:00:50.6]} 21... e5 {[%clk 0:00:47.3]} 22. f5 {[%clk 0:00:47.3]} 22...
f6 {[%clk 0:00:41.8]} 23. Qd5+ {[%clk 0:00:44.3]} 23... Rf7 {[%clk 0:00:40.6]}
24. fxg6 {[%clk 0:00:43.5]} 24... Qe7 {[%clk 0:00:37.2]} 25. gxf7+ {[%clk
0:00:39]} 25... Qxf7 {[%clk 0:00:38.1]} 26. g6 {[%clk 0:00:38.6]} 26... Qxd5
{[%clk 0:00:37.1]} 27. Nxd5 {[%clk 0:00:39.5]} 27... Ne7 {[%clk 0:00:37.7]} 28.
Nxe7+ {[%clk 0:00:39.1]} 1-0